bitfinex/quotes_SOLUSD_20250520
["timestamp","ask_amount","ask_price","bid_price","bid_amount"]
[1747778709795,37.09092718,167.54,167.53,4.86547394]
[1747778710687,37.09092718,167.54,167.39,7.9228]
[1747778710688,18.64964886,167.53,167.39,39.70977086]
[1747778710893,12.47255444,167.45,167.39,39.20977086]
[1747778711096,12.47255444,167.46,167.42,25.5]
[1747778711283,12.47255444,167.47,167.42,25.5]
[1747778711482,12.47255444,167.47,167.42,25.0]
[1747778712303,5.9715753,167.46,167.42,25.0]
[1747778712604,5.9715753,167.46,167.42,24.5]
[1747778712806,18.44412974,167.46,167.42,24.5]
[1747778712991,12.47255444,167.45,167.42,24.0]
[1747778713195,18.44412974,167.46,167.42,23.5]
[1747778713392,12.47255444,167.45,167.42,23.5]
[1747778713707,12.47255444,167.45,167.42,23.0]
[1747778714913,5.97228858,167.44,167.42,23.0]
[1747778715230,5.97228858,167.44,167.39,36.2228]
[1747778715231,12.47255444,167.43,167.39,36.2228]
[1747778715592,12.47255444,167.42,167.39,36.2228]
[1747778715815,12.47255444,167.42,167.39,62.2228]
[1747778716123,12.47255444,167.41,167.39,56.3271]
[1747778716491,12.47255444,167.4,167.39,28.8]
[1747778716689,12.47255444,167.4,167.35,6.1299]
[1747778716889,12.47255444,167.38,167.35,31.6299]
[1747778717091,12.47255444,167.38,167.35,31.1299]
[1747778717889,12.47255444,167.38,167.34,28.82]
[1747778718306,12.47255444,167.38,167.32,28.82]
[1747778718487,12.47255444,167.38,167.35,26.0]
[1747778718926,12.47255444,167.37,167.32,28.82]
[1747778719227,12.47255444,167.36,167.32,28.82]
[1747778719435,12.47255444,167.36,167.33,26.0]
[1747778720315,18.64964886,167.43,167.35,26.0]
[1747778720516,12.47255444,167.4,167.35,26.0]
[1747778720691,12.47255444,167.41,167.35,25.5]
[1747778720894,12.47255444,167.41,167.35,28.48757186]
[1747778721093,12.47255444,167.4,167.35,28.48757186]
[1747778721889,18.44634217,167.4,167.35,28.48757186]
[1747778722711,12.47255444,167.36,167.32,28.82]
[1747778722899,12.47255444,167.36,167.33,26.0]
[1747778723085,5.97378773,167.4,167.32,54.82]
[1747778723086,12.47255444,167.35,167.32,54.82]
[1747778723290,12.47255444,167.35,167.32,25.5]
[1747778723494,12.47255444,167.34,167.32,25.5]
[1747778724212,20.91081139,167.38,167.32,25.5]
[1747778724431,12.47255444,167.36,167.32,25.5]
[1747778724602,12.47255444,167.35,167.32,25.5]
[1747778724803,12.47255444,167.34,167.32,25.5]
[1747778725211,12.47255444,167.36,167.32,25.5]
[1747778725926,5.97442944,167.38,167.32,25.5]
[1747778726323,12.47255444,167.37,167.32,25.5]
[1747778726834,12.47255444,167.37,167.32,28.48825407]
[1747778727223,12.47255444,167.38,167.32,27.98825407]
[1747778727427,12.47255444,167.37,167.32,27.98825407]
[1747778728030,32.83413741,167.39,167.32,25.0]
[1747778728031,12.47255444,167.34,167.32,25.0]
[1747778728249,12.47255444,167.35,167.32,24.5]
[1747778729113,12.47255444,167.33,167.3,28.8]
[1747778729461,12.47255444,167.31,167.25,30.3244]
[1747778729635,12.47255444,167.3,167.25,30.3244]
[1747778729811,20.91550136,167.34,167.25,33.31386276]
[1747778730012,12.47255444,167.32,167.25,33.31386276]
[1747778730213,12.47255444,167.33,167.25,33.31386276]
[1747778730534,12.47255444,167.33,167.28,26.0]
[1747778730715,12.47255444,167.33,167.25,32.81386276]
[1747778730913,5.97657183,167.32,167.25,32.81386276]
[1747778731110,18.44912627,167.32,167.28,25.5]
[1747778731309,12.47255444,167.29,167.25,1.0044]
[1747778731734,12.47255444,167.26,167.2,6.6603]
[1747778731913,12.47255444,167.25,167.19,28.82]
[1747778732117,12.47255444,167.25,167.18,28.82]
[1747778732512,18.64964886,167.3,167.18,28.82]
[1747778732714,20.91800142,167.32,167.18,28.82]
[1747778732914,20.91800142,167.32,167.21,18.64964886]
[1747778732915,5.97657183,167.32,167.21,18.64964886]
[1747778733233,18.44912627,167.32,167.25,23.5]
[1747778733432,18.44912627,167.32,167.25,23.0]
[1747778733818,12.47255444,167.31,167.25,22.5]
[1747778734020,18.4496801,167.31,167.25,22.5]
[1747778734731,12.47255444,167.31,167.25,25.48943158]
[1747778735225,18.44921093,167.32,167.25,25.48943158]
[1747778735632,26.07744941,167.32,167.25,25.48943158]
[1747778736233,20.10079292,167.31,167.25,25.48943158]
[1747778736734,20.10079292,167.3,167.25,25.48943158]
[1747778736930,20.10079292,167.3,167.26,26.0]
[1747778737142,20.10079292,167.29,167.26,26.0]
[1747778737437,20.10079292,167.28,167.22,26.0]
[1747778737637,20.10079292,167.27,167.22,26.0]
[1747778738014,26.07891285,167.28,167.22,28.99001386]
[1747778738214,5.97811993,167.28,167.22,28.99001386]
[1747778738534,26.07891285,167.28,167.22,28.99001386]
[1747778738726,33.59018552,167.33,167.22,28.99001386]
[1747778738727,20.10079292,167.29,167.22,28.99001386]
[1747778738925,20.10079292,167.3,167.23,28.84]
[1747778739339,6.2035,167.36,167.26,26.0]
[1747778739518,20.10079292,167.36,167.28,1.5531]
[1747778739718,20.10079292,167.36,167.29,28.84]
[1747778740037,20.10079292,167.37,167.29,28.84]
[1747778740221,20.10079292,167.37,167.3,28.98864315]
[1747778740415,20.10079292,167.39,167.3,36.46025104]
[1747778740632,5.97300203,167.42,167.33,26.0]
[1747778740924,26.88,167.46,167.38,26.0]
[1747778741125,32.85168108,167.46,167.39,28.84]
[1747778741431,18.64964886,167.5,167.39,28.84]
[1747778741432,20.10079292,167.5,167.39,28.84]
[1747778742049,26.07058576,167.51,167.42,27.6178]
[1747778742734,20.10079292,167.49,167.42,27.6178]
[1747778743039,20.10079292,167.48,167.42,27.6178]
[1747778743236,20.10079292,167.47,167.42,1.6178]
[1747778743437,20.10079292,167.46,167.41,28.82]
[1747778743642,20.10079292,167.46,167.4,28.82]
[1747778743848,20.10079292,167.44,167.4,28.82]
[1747778744027,20.10079292,167.43,167.4,28.82]
[1747778744228,26.07379495,167.42,167.4,28.82]
[1747778744430,20.10079292,167.41,167.35,60.9416]
[1747778744744,20.10079292,167.4,167.35,28.82]
[1747778745243,20.9055071,167.42,167.35,28.82]
[1747778745244,20.10079292,167.38,167.35,28.82]
[1747778746236,26.07593632,167.36,167.3,28.82]
[1747778746446,20.10079292,167.34,167.28,252.38]
[1747778746745,20.9130019,167.36,167.28,28.82]
[1747778746746,20.10079292,167.33,167.28,28.82]
[1747778746927,20.10079292,167.29,167.22,35.135]
[1747778747340,20.10079292,167.3,167.22,35.135]
[1747778747552,20.10079292,167.3,167.22,61.135]
[1747778748060,18.64964886,167.34,167.22,61.135]
[1747778748255,5.97764361,167.29,167.22,35.135]
[1747778748550,5.97764361,167.29,167.22,61.135]
[1747778748847,20.10079292,167.31,167.22,61.135]
[1747778750330,5.97728631,167.3,167.22,64.12504863]
[1747778750730,20.10079292,167.32,167.22,64.12504863]
[1747778751354,20.10079292,167.31,167.22,88.015]
[1747778751954,20.10079292,167.27,167.22,54.82]
[1747778752336,5.97871577,167.26,167.22,54.82]
[1747778753843,20.10079292,167.24,167.22,28.82]
[1747778754054,20.10079292,167.25,167.22,28.82]
[1747778754248,20.10079292,167.24,167.22,28.82]
[1747778754457,5.97978831,167.23,167.18,223.5]
[1747778754744,5.97978831,167.23,167.17,1.5842]
[1747778754745,5.97978831,167.23,167.17,30.9442]
[1747778755132,5.97978831,167.23,167.18,26.0]
[1747778755532,5.97907324,167.25,167.18,26.0]
[1747778755928,32.85879046,167.26,167.18,26.0]
[1747778756160,5.97879046,167.26,167.18,26.0]
[1747778756535,5.97800095,167.28,167.19,2.99060948]
[1747778757638,20.10079292,167.26,167.18,28.99074996]
[1747778757963,20.10079292,167.26,167.18,26.0]
[1747778758267,20.10079292,167.25,167.18,26.0]
[1747778758559,13.58022367,167.25,167.18,26.0]
[1747778759140,13.58022367,167.25,167.17,30.9442]
[1747778759334,18.64964886,167.27,167.17,30.9442]
[1747778759535,5.97871577,167.26,167.17,33.43516286]
[1747778759768,5.97800095,167.28,167.17,33.43516286]
[1747778759983,5.97800095,167.28,167.2,26.0]
[1747778760252,26.07700758,167.33,167.2,52.88]
[1747778760458,5.97621466,167.33,167.21,6.5734]
[1747778760660,5.97550044,167.35,167.25,26.0]
[1747778760857,5.9747864,167.37,167.26,29.38]
[1747778761865,5.97442944,167.38,167.27,2.98917917]
[1747778762041,20.91050304,167.38,167.27,2.98917917]
[1747778762241,41.01129596,167.38,167.27,2.98917917]
[1747778762636,41.01129596,167.38,167.28,1.6404]
[1747778762834,20.91050304,167.38,167.29,26.0]
[1747778763068,20.91050304,167.38,167.3,6.2539]
[1747778764179,41.01129596,167.38,167.3,6.2539]
[1747778765376,20.10079292,167.36,167.29,26.0]
[1747778765891,20.10079292,167.35,167.28,31.0004]
[1747778766093,20.91550136,167.34,167.28,31.0004]
[1747778766271,20.91550136,167.34,167.28,29.36]
[1747778766851,5.97585753,167.34,167.28,29.36]
[1747778767056,5.97585753,167.34,167.28,32.34899021]
[1747778767360,5.9751434,167.36,167.28,32.34899021]
[1747778767886,5.9751434,167.36,167.28,29.36]
[1747778768386,5.9747864,167.37,167.28,32.34893685]
[1747778770072,20.91070772,167.38,167.28,32.34893685]
[1747778770385,41.01150064,167.38,167.28,32.34893685]
[1747778770783,5.97442944,167.38,167.29,55.36]
[1747778770984,20.10079292,167.37,167.29,26.0]
[1747778771164,20.10079292,167.36,167.29,55.36]
[1747778771775,20.10079292,167.37,167.29,55.36]
[1747778772275,20.9130019,167.36,167.29,55.36]
[1747778773386,18.64964886,167.35,167.22,259.6291]
[1747778773684,18.64964886,167.35,167.22,285.6291]
[1747778773685,45.52964886,167.35,167.22,285.6291]
[1747778773855,20.10079292,167.3,167.22,285.6291]
[1747778774370,20.10079292,167.28,167.22,29.36]
[1747778774568,18.64964886,167.25,167.22,29.36]
[1747778774781,20.10079292,167.23,167.17,29.36]
[1747778774955,20.10079292,167.24,167.17,29.36]
[1747778775159,20.10079292,167.26,167.17,29.36]
[1747778775376,5.97871577,167.26,167.17,29.36]
[1747778775585,20.92550519,167.26,167.17,29.36]
[1747778775798,41.02629811,167.26,167.17,29.36]
[1747778776671,20.92550519,167.26,167.17,29.36]
[1747778776875,5.97871577,167.26,167.17,32.35095547]
[1747778777697,38.75044178,167.26,167.17,29.36]
[1747778778198,38.75044178,167.26,167.17,32.3509174]
[1747778778402,20.92425419,167.27,167.17,32.3509174]
[1747778778576,5.97835834,167.27,167.17,32.3509174]
[1747778779770,5.97800095,167.28,167.17,39.82833559]
[1747778780092,5.97800095,167.28,167.2,26.0]
[1747778780570,26.88,167.31,167.25,26.0]
[1747778780571,5.9770064,167.31,167.25,26.0]
[1747778780888,5.97585753,167.34,167.25,58.601]
[1747778781666,32.85548302,167.36,167.25,58.601]
[1747778781975,35.03650057,167.39,167.26,10.46275259]
[1747778781976,5.97442944,167.38,167.26,10.46275259]
[1747778783101,20.91050304,167.38,167.26,2.98935788]
[1747778783774,41.01129596,167.38,167.26,2.98935788]
[1747778784274,20.91050304,167.38,167.26,2.98935788]
[1747778784466,14.9360736,167.38,167.26,3.58692387]
[1747778786496,20.90675585,167.41,167.3,26.0]
[1747778786672,5.97335881,167.41,167.31,57.1]
[1747778787511,5.97335881,167.41,167.32,1.5581]
[1747778787871,5.97335881,167.41,167.33,0.59730552]
[1747778788581,20.89801767,167.48,167.35,26.0]
[1747778788895,20.89801767,167.48,167.36,26.88]
[1747778789088,20.89801767,167.48,167.37,31.1]
[1747778789569,20.10079292,167.47,167.37,31.1]
[1747778789777,20.10079292,167.46,167.37,31.1]
[1747778790094,20.10079292,167.45,167.37,31.1]
[1747778790285,20.10079292,167.43,167.37,31.1]
[1747778790495,20.10079292,167.43,167.3,6.607]
[1747778790496,50.77658302,167.4,167.3,6.607]
[1747778790668,20.10079292,167.38,167.33,31.1]
[1747778790864,20.10079292,167.37,167.29,31.1]
[1747778791098,20.10079292,167.36,167.29,31.1]
[1747778791308,20.10079292,167.35,167.29,31.1]
[1747778791667,18.64964886,167.39,167.29,31.1]
[1747778791884,20.10079292,167.35,167.29,31.1]
[1747778792100,18.64964886,167.39,167.29,31.1]
[1747778792397,20.10079292,167.36,167.29,31.1]
[1747778792694,50.7917538,167.35,167.29,31.1]
[1747778793799,29.87750224,167.35,167.29,31.1]
[1747778794685,29.87750224,167.35,167.27,26.0]
[1747778796000,50.7917538,167.35,167.27,26.0]
[1747778801909,20.91425156,167.35,167.27,26.0]
[1747778803287,20.91425156,167.35,167.28,31.1]
[1747778806603,50.78265024,167.38,167.28,31.1]
[1747778808317,20.10079292,167.37,167.28,31.1]
[1747778808516,70.88344316,167.38,167.28,31.1]
[1747778809025,50.78265024,167.38,167.28,31.1]
[1747778809186,70.88344316,167.38,167.28,31.1]
[1747778810614,50.78265024,167.38,167.28,31.1]
[1747778810818,70.88344316,167.38,167.28,31.1]
[1747778811025,50.78265024,167.38,167.28,31.1]
[1747778811337,70.88344316,167.38,167.28,31.1]
[1747778812928,50.7917538,167.35,167.28,31.1]
[1747778813623,203.33044178,167.34,167.24,225.1242]
[1747778815025,50.79782464,167.33,167.24,225.1242]
[1747778815317,50.79782464,167.33,167.24,1.5042]
[1747778815620,70.89861756,167.33,167.24,1.5042]
[1747778815995,50.79782464,167.33,167.24,1.5042]
[1747778818313,72.51321756,167.33,167.23,30.54]
[1747778818517,52.41242464,167.33,167.23,30.54]
[1747778818711,26.0,167.32,167.23,30.54]
[1747778819718,20.91925168,167.31,167.23,30.54]
[1747778820313,20.91925168,167.31,167.23,57.42]
[1747778821403,14.94232263,167.31,167.23,60.40984245]
[1747778821610,5.97621466,167.33,167.25,1.5905]
[1747778821849,5.97621466,167.33,167.27,6.6262]
[1747778822139,5.9751434,167.36,167.28,26.88]
[1747778822322,20.9130019,167.36,167.29,30.54]
[1747778823247,14.9378585,167.36,167.29,30.54]
[1747778823829,35.03865142,167.36,167.29,30.54]
[1747778824009,26.88,167.35,167.29,30.54]
[1747778824205,184.68079292,167.35,167.29,30.54]
[1747778824422,18.64964886,167.34,167.25,1.5905]
[1747778824630,18.64964886,167.32,167.23,30.54]
[1747778824837,38.75044178,167.32,167.23,30.54]
[1747778825312,20.91925168,167.31,167.23,30.54]
[1747778827829,50.80389694,167.31,167.23,30.54]
[1747778828630,20.91925168,167.31,167.23,30.54]
[1747778830635,14.94232263,167.31,167.23,30.54]
[1747778832146,14.94232263,167.31,167.23,56.54]
[1747778834137,14.94232263,167.31,167.26,26.0]
[1747778834741,5.97657183,167.32,167.26,26.0]
[1747778835946,20.91675132,167.33,167.26,26.0]
[1747778836922,26.88,167.36,167.25,28.98948501]
[1747778838881,20.91425156,167.35,167.25,28.98948501]
[1747778839171,20.91425156,167.35,167.26,26.0]
[1747778839575,20.91425156,167.35,167.27,1.5623]
[1747778840072,14.93875112,167.35,167.27,1.5623]
[1747778840280,14.93875112,167.35,167.27,27.5623]
[1747778840653,14.93875112,167.35,167.27,30.5514697]
[1747778843385,5.9747864,167.37,167.27,30.5514697]
[1747778843581,5.9747864,167.37,167.28,6.2647]
[1747778843882,5.9747864,167.37,167.29,30.1]
[1747778844269,14.93682068,167.38,167.29,30.1]
[1747778844770,14.93682068,167.38,167.29,33.08879698]
[1747778845093,14.93682068,167.38,167.29,30.1]
[1747778845594,14.93682068,167.38,167.3,26.0]
[1747778846359,20.90675585,167.41,167.3,28.98856192]
[1747778846595,20.90675585,167.41,167.3,111.48856192]
[1747778853981,168.90107122,167.4,167.29,30.1]
[1747778854170,12.55142236,167.37,167.29,30.1]
[1747778854370,12.55142236,167.36,167.29,30.1]
[1747778854580,12.55142236,167.37,167.29,30.1]
[1747778855877,31.20107122,167.36,167.29,30.1]
[1747778856076,50.79478903,167.34,167.29,30.1]
[1747778856288,12.55142236,167.33,167.24,6.1994]
[1747778856975,12.55142236,167.33,167.23,31.6011]
[1747778857178,12.55142236,167.33,167.24,26.0]
[1747778858088,50.80086061,167.32,167.24,26.0]
[1747778860096,44.82428878,167.32,167.24,26.0]
[1747778861678,14.94142959,167.32,167.24,26.0]
[1747778862697,14.94142959,167.32,167.24,28.98960047]
[1747778863591,20.91425156,167.35,167.24,28.98960047]
[1747778864891,20.91425156,167.35,167.25,6.4667]
[1747778872146,50.7917538,167.35,167.25,6.4667]
[1747778872292,63.34317616,167.35,167.25,6.4667]
[1747778872798,201.04317616,167.35,167.25,6.4667]
[1747778873596,12.55142236,167.34,167.25,6.4667]
[1747778873979,201.04317616,167.35,167.25,6.4667]
[1747778875941,215.3717538,167.35,167.25,6.4667]
[1747778878848,215.3717538,167.35,167.25,36.0067]
[1747778881631,18.64964886,167.34,167.25,29.54]
[1747778882137,50.79782464,167.33,167.25,29.54]
[1747778883918,44.82160998,167.33,167.25,29.54]
[1747778884637,14.94053666,167.33,167.25,29.54]
[1747778884808,5.97585753,167.34,167.25,112.04]
[1747778885013,5.97585753,167.34,167.28,32.5851]
[1747778885216,5.97442944,167.38,167.29,1.5203]
[1747778885932,20.91050304,167.38,167.29,4.50899681]
[1747778886837,12.55142236,167.37,167.29,26.0]
[1747778888441,20.9130019,167.36,167.29,26.0]
[1747778893240,14.9378585,167.36,167.29,26.0]
[1747778893831,27.48928086,167.36,167.27,26.0]
[1747778894033,12.55142236,167.35,167.27,26.0]
[1747778894556,150.25142236,167.35,167.27,26.0]
[1747778894720,26.88,167.34,167.27,26.0]
[1747778895057,12.55142236,167.32,167.25,29.54]
[1747778895235,20.92050209,167.3,167.21,37.86003721]
[1747778895545,20.92050209,167.3,167.24,26.0]
[1747778895725,20.92050209,167.3,167.21,37.86003721]
[1747778895928,20.92050209,167.3,167.22,26.0]
[1747778896727,20.92050209,167.3,167.23,1.6075]
[1747778897147,14.94321578,167.3,167.23,1.6075]
[1747778899349,20.91675132,167.33,167.23,4.59735251]
[1747778902754,20.91675132,167.33,167.23,1.6075]
[1747778902931,20.91675132,167.33,167.23,4.59736407]
[1747778904539,20.91675132,167.33,167.24,29.28]
[1747778906731,20.91675132,167.33,167.24,32.26970878]
[1747778907236,20.91675132,167.33,167.24,29.28]
[1747778908453,63.349247,167.33,167.24,29.28]
[1747778908847,12.55142236,167.31,167.24,29.28]
[1747778910762,20.92050209,167.3,167.24,29.28]
[1747778910965,5.97728631,167.3,167.27,26.0]
[1747778912359,14.94122574,167.33,167.27,26.0]
[1747778914946,14.94122574,167.33,167.26,26.0]
[1747778916768,14.94122574,167.33,167.27,26.0]
[1747778920437,14.94122574,167.33,167.26,26.0]
[1747778926347,14.94122574,167.33,167.27,26.0]
[1747778926541,14.94122574,167.33,167.28,26.0]
[1747778929270,5.97550044,167.35,167.28,26.0]
[1747778929571,20.91425156,167.35,167.28,26.0]
[1747778930173,20.91425156,167.35,167.3,26.0]
[1747778941654,5.97550044,167.35,167.27,32.26915204]
[1747778942098,5.9747864,167.37,167.28,45.24721302]
[1747778942389,5.97371565,167.4,167.28,127.74721302]
[1747778942591,5.97371565,167.4,167.32,26.0]
[1747778942750,5.97371565,167.4,167.33,29.1]
[1747778943155,5.97300203,167.42,167.34,2.98792876]
[1747778943381,5.97300203,167.42,167.35,1.63]
[1747778943586,5.9715753,167.46,167.36,6.1792]
[1747778943881,2.20815733,167.45,167.36,6.1792]
[1747778944062,28.20815733,167.45,167.36,6.1792]
[1747778944383,2.20815733,167.45,167.36,6.1792]
[1747778944577,26.0,167.45,167.36,6.1792]
[1747778945067,5.97228858,167.44,167.36,6.1792]
[1747778947064,20.90301003,167.44,167.36,6.1792]
[1747778948789,14.93072145,167.44,167.37,26.0]
[1747778951194,14.93072145,167.44,167.39,26.0]
[1747778951488,14.93072145,167.44,167.37,26.0]
[1747778952072,27.48214381,167.44,167.37,26.0]
[1747778952274,18.64964886,167.43,167.37,26.0]
[1747778952479,50.77051725,167.42,167.37,26.0]
[1747778952682,50.77051725,167.42,167.32,33.2321]
[1747778952683,31.20107122,167.41,167.32,6.3721]
[1747778952897,58.06107122,167.41,167.35,26.0]
[1747778953964,45.50964886,167.41,167.35,26.0]
[1747778954892,20.90800477,167.4,167.35,26.0]
[1747778955197,50.77658302,167.4,167.35,26.0]
[1747778956689,20.90800477,167.4,167.35,26.0]
[1747778959002,20.90425849,167.43,167.35,26.0]
[1747778962313,5.97264528,167.43,167.36,1.6309]
[1747778962483,5.97264528,167.43,167.4,26.0]
[1747778962686,5.97193191,167.45,167.42,26.0]
[1747778964200,20.89676995,167.49,167.42,26.0]
[1747778966681,63.30072081,167.49,167.42,26.0]
[1747778966887,12.55142236,167.48,167.4,26.0]
[1747778967089,31.20107122,167.47,167.4,26.0]
[1747778967706,31.20107122,167.47,167.39,29.5]
[1747778967906,31.20107122,167.47,167.39,55.5]
[1747778968609,20.90051355,167.46,167.39,55.5]
[1747778972409,1.5022,167.45,167.33,29.5]
[1747778972611,1.5022,167.45,167.33,56.36]
[1747778972795,5.97228858,167.44,167.36,26.0]
[1747778973894,5.97193191,167.45,167.36,28.98751562]
[1747778974306,12.55142236,167.44,167.36,26.0]
[1747778974501,12.55142236,167.43,167.36,26.0]
[1747778974902,31.20107122,167.44,167.36,26.0]
[1747778975516,18.64964886,167.44,167.36,26.0]
[1747778975817,20.90425849,167.43,167.36,26.0]
[1747778976399,50.76748491,167.43,167.36,26.0]
[1747778979223,31.20107122,167.42,167.34,26.0]
[1747778979398,26.86,167.41,167.34,26.0]
[1747778979898,50.78871891,167.36,167.26,8.32003721]
[1747778980104,50.78871891,167.36,167.29,26.0]
[1747778980105,77.64871891,167.36,167.29,26.0]
[1747778980907,77.64871891,167.36,167.27,26.0]
[1747778984030,18.64964886,167.35,167.27,26.0]
[1747778985941,20.91550136,167.34,167.27,26.0]
[1747778988026,14.93964383,167.34,167.27,26.0]
[1747778995845,18.64964886,167.33,167.23,1.5524]
[1747778996020,31.20107122,167.33,167.23,1.5524]
[1747778996223,31.20107122,167.33,167.24,26.0]
[1747778996453,18.64964886,167.33,167.24,26.0]
[1747778997653,20.91800142,167.32,167.24,26.0]
[1747778998249,20.91800142,167.32,167.23,1.5524]
[1747779000657,20.91800142,167.32,167.24,26.0]
[1747779000658,5.97657183,167.32,167.24,26.0]
[1747779001147,20.91800142,167.32,167.24,26.0]
[1747779001359,20.91800142,167.32,167.24,55.46]
[1747779001852,51.50336451,167.4,167.28,26.0]
[1747779002062,26.0,167.39,167.28,26.0]
[1747779002440,14.93678932,167.38,167.28,30.18459343]
[1747779002929,14.93678932,167.38,167.28,26.0]
[1747779003956,20.91121876,167.38,167.28,30.18456576]
[1747779008251,20.91121876,167.38,167.29,5.82334335]
[1747779008451,20.91121876,167.38,167.3,29.46]
[1747779010459,20.91121876,167.38,167.3,33.6440171]
[1747779010632,5.97442944,167.38,167.3,33.6440171]
[1747779011570,5.97371565,167.4,167.3,33.6440171]
[1747779012138,5.97371565,167.4,167.33,26.0]
[1747779012657,5.97264528,167.43,167.34,26.0]
[1747779012859,5.97264528,167.43,167.35,1.5019]
[1747779013047,5.97264528,167.43,167.36,29.46]
[1747779013750,14.93143977,167.44,167.36,29.46]
[1747779014043,14.93143977,167.44,167.37,26.0]
[1747779022317,5.9715753,167.46,167.39,26.0]
[1747779022479,5.9715753,167.46,167.4,26.0]
[1747779023159,5.9715753,167.46,167.41,26.0]
[1747779023377,5.9715753,167.46,167.42,29.44]
[1747779024084,20.89618431,167.5,167.42,29.44]
[1747779024388,20.89618431,167.5,167.42,33.62104918]
[1747779024552,20.89618431,167.5,167.42,29.44]
[1747779024755,5.97014925,167.5,167.45,26.0]
[1747779025788,20.89220598,167.53,167.46,26.0]
[1747779026683,46.89220598,167.53,167.44,1.501]
[1747779028101,20.89220598,167.53,167.44,27.501]
[1747779028772,63.28902916,167.53,167.44,27.501]
[1747779029188,50.7376068,167.53,167.44,27.501]
[1747779030292,20.89220598,167.53,167.44,27.501]
[1747779030710,20.89220598,167.53,167.44,31.68159604]
[1747779030876,20.89220598,167.53,167.46,26.0]
[1747779031515,5.96908016,167.53,167.47,26.0]
[1747779031799,41.78075709,167.56,167.47,26.0]
[1747779031800,5.96836765,167.55,167.48,30.04]
[1747779032015,5.96836765,167.55,167.48,34.2195887]
[1747779032206,5.96836765,167.55,167.5,26.0]
[1747779032492,5.9672992,167.58,167.5,26.0]
[1747779033605,20.88493236,167.59,167.5,26.0]
[1747779035230,20.88493236,167.59,167.49,90.3952]
[1747779035395,14.91798923,167.59,167.49,90.3952]
[1747779040523,31.20107122,167.58,167.49,84.1192]
[1747779040897,26.84,167.57,167.49,1.6192]
[1747779042507,5.9672992,167.58,167.53,26.0]
[1747779042693,5.96623113,167.61,167.54,30.02]
[1747779043093,20.88180895,167.61,167.54,30.02]
[1747779044627,14.91557782,167.61,167.54,30.02]
[1747779045405,5.96551929,167.63,167.55,1.5214]
[1747779045605,5.96551929,167.63,167.56,6.355]
[1747779046435,5.96551929,167.63,167.56,32.355]
[1747779046734,14.91094496,167.67,167.57,3.58059318]
[1747779047307,5.96374045,167.68,167.59,26.0]
[1747779047513,5.96374045,167.68,167.6,30.02]
[1747779047833,5.96374045,167.68,167.61,1.5214]
[1747779048049,10.0,167.75,167.63,26.0]
[1747779048050,14.90529937,167.73,167.63,26.0]
[1747779048342,14.90529937,167.73,167.64,6.355]
[1747779048653,18.64964886,167.72,167.61,27.5214]
[1747779048853,20.86935781,167.71,167.61,27.5214]
[1747779049351,47.70935781,167.71,167.61,27.5214]
[1747779049735,31.20107122,167.7,167.6,30.02]
[1747779049946,18.64964886,167.68,167.59,26.0]
[1747779050258,18.64964886,167.66,167.58,30.02]
[1747779050552,12.55142236,167.65,167.58,30.02]
[1747779050860,81.90798524,167.63,167.53,31.5444]
[1747779051034,81.90798524,167.63,167.53,57.5444]
[1747779051431,69.35656288,167.63,167.53,57.5444]
[1747779051955,12.55142236,167.61,167.53,30.0]
[1747779052154,18.64964886,167.62,167.53,30.0]
[1747779052453,12.55142236,167.61,167.53,30.0]
[1747779052839,18.64964886,167.59,167.53,30.0]
[1747779053650,47.72305489,167.6,167.53,30.0]
[1747779053944,5.96658711,167.6,167.53,30.0]
[1747779054323,5.96658711,167.6,167.55,26.0]
[1747779054661,5.96516344,167.64,167.56,7.6216]
[1747779054844,5.96516344,167.64,167.56,11.202233]
[1747779055230,5.96516344,167.64,167.56,7.6216]
[1747779056426,20.87807205,167.64,167.56,7.6216]